Cogmind - Beta 17.1 @@@ ROGUE MODE // 2026.09.01 @ 12:50:49 Player: Finn Result: Destroyed by T2-52Z(R) with Subdweller Machine Gun Performance ------------- Evolutions (0) 0 Regions Visited (2) 400 Robots Destroyed (35) 175 Value Destroyed (639) 639 Prototype IDs (0) 0 Alien Tech Used (0) 0 Bonus (0) 0 TOTAL SCORE: 1214 Bonus ------- None Cogmind --------- Core Integrity 0/250 Matter 272/300 Energy 248/250 System Corruption 0% Temperature Cool (0) Movement Rolling (95) Ox1 Location -10/Subcaves Parts ------- > --- POWER (1) -------- Ion Engine > --- PROPULSION (2) --- Wheel > --- UTILITY (2) ------ Small Storage Unit Signal Interpreter > --- WEAPON (2) ------- Autogun Subdweller Machine Gun > --- INVENTORY (8) ---- Light Ion Engine Improved Ion Engine Light Nuclear Core Light Treads Aluminum Leg Aluminum Leg EM Pulse Gun Peak State ------------ > --- POWER ------------ Ion Engine > --- PROPULSION ------- Wheel Wheel > --- UTILITY ---------- Small Storage Unit Signal Interpreter > --- WEAPON ----------- Particle Gun Autogun > --- INVENTORY -------- Light Ion Engine Improved Ion Engine Light Nuclear Core Light Treads Aluminum Leg Aluminum Leg EM Pulse Gun Subdweller Machine Gun [Rating: 10] Favorites ----------- Power Light Ion Engine Engine Light Ion Engine Propulsion Wheel Treads Light Treads Wheel Wheel Utility Small Storage Unit Device Improved Terrain Scanner Storage Small Storage Unit Processor Signal Interpreter Weapon Particle Gun Energy Gun Particle Gun Ballistic Gun Autogun Build | -11 -10 -10 ------- Run | Yrd Mat Sub Slots Evolved . | . . . Power . | . . . Propulsion . | . . . Utility . | . . . Weapon . | . . . Parts Attached 17 | 7 8 2 Power 2 | 1 1 . Engine 2 | 1 1 . Core . | . . . Reactor . | . . . Propulsion 5 | 2 2 1 Treads 1 | . 1 . Leg . | . . . Wheel 4 | 2 1 1 Hover . | . . . Flight . | . . . Utility 4 | 2 2 . Device 2 | 1 1 . Storage 1 | 1 . . Processor 1 | . 1 . Hackware . | . . . Protection . | . . . Artifact . | . . . Weapon 6 | 2 3 1 Energy Gun 3 | 2 1 . Energy Cannon . | . . . Ballistic Gun 3 | . 2 1 Ballistic Cannon . | . . . Launcher . | . . . Special Weapon . | . . . Impact Weapon . | . . . Slashing Weapon . | . . . Piercing Weapon . | . . . Special Melee Weapon . | . . . Unidentified Prototypes . | . . . Parts Lost 6 | . 4 2 Power . | . . . Propulsion 3 | . 2 1 Utility 1 | . 1 . Weapon 2 | . 1 1 Highest Loss Streak 3 | . 3 2 To Critical Strikes . | . . . Average Backups 7 | 5 7 7 Power 1 | . 1 2 Propulsion 3 | 3 3 3 Utility . | . . . Weapon 1 | . 1 1 Tool/Special . | . . . Unused Backups 6 | . . 6 Power 2 | . . 2 Propulsion 3 | . . 3 Utility . | . . . Weapon 1 | . . 1 Tool/Special . | . . . Average Slot Usage (%) 90 | . 89 93 Engine 14 | . 14 14 Wheel 20 | . 20 21 Device 4 | . 7 . Storage 14 | . 14 14 Processor 7 | . 4 14 Energy Gun 16 | . 18 13 Ballistic Gun 11 | . 9 14 Peak Build Rating 10 | 9 9 10 Average Rating 8 | 8 8 9 On Entrance 5 | . 9 8 Avg Prop Armor Cover (%) . | . . . Naked Turns . | . . . Heaviest Build 16 | 12 16 16 Greatest Support 20 | 20 20 20 Greatest Overweight (x) 1 | . 1 1 Average Overweight (x) . | . . . Largest Inventory Capacity 8 | 8 8 8 Average Capacity 7 | 7 8 8 Most Carried 8 | 7 8 8 Average Carried 7 | 5 7 7 Final Capacity 8 | 8 8 8 Final Carried 7 | 6 7 7 Class Distribution -------------------- 100% | Mutant Dominant Class ---------------- Mutant | -10/Materials Mutant | -10/Subcaves Resources | -11 -10 -10 ----------- Run | Yrd Mat Sub Matter Collected 467 | 270 84 113 Remotely . | . . . Salvage Created 1069 | 365 479 225 Parts 77 | 27 30 20 Haulers Intercepted . | . . . Recyclers Shooed 1 | . 1 . Parts Field Recycled . | . . . Retrieved Matter . | . . . Parts Self-Destructed 14 | . . 14 Prevented . | . . . Parts Restored . | . . . Kills | -11 -10 -10 ------- Run | Yrd Mat Sub Combat Hostiles Destroyed 19 | . 12 7 Guns 19 | . 12 7 Classes Destroyed 8 | 3 3 2 Worker 4 | 4 . . Tunneler 9 | 9 . . Recycler 2 | 1 1 . Watcher 1 | . 1 . Swarmer 6 | . 3 3 Grunt 9 | . 9 . Sentry 1 | . . 1 Subdweller 3 | . . 3 Best Kill Streak 4 | 3 4 4 Combat Bots Only 4 | . 4 4 Max Kills in Single Turn 2 | 2 1 1 Gunslinging . | . . . Exploded . | . . . Melee . | . . . Uniques/NPCs Destroyed . | . . . Combat | -11 -10 -10 -------- Run | Yrd Mat Sub Hostile Shots Fired 87 | . 64 23 Missed 22 | . 16 6 Hits 65 | . 48 17 Projectile 65 | . 48 17 Damage Taken 836 | . 518 318 Core 254 | . 176 78 Absorbed by Shields . | . . . Core Remaining (%) 100 | 100 . . Volleys Fired 99 | 40 41 18 Largest 2 | 2 2 2 Hottest 90 | 90 90 88 Shots Fired 170 | 67 73 30 Gun 170 | 67 73 30 Cannon . | . . . Launcher . | . . . Special . | . . . Kinetic 45 | . 25 20 Thermal 125 | 67 48 10 Explosive . | . . . Electromagnetic . | . . . Robot Hit Streak 10 | 9 6 10 Robot Miss Streak 4 | 4 3 1 Penetration Max . | . . . Secondary Targets 1 | . 1 . Max Gunslinging Chain 1 | . 1 . Shots Hit Robots 106 | 35 45 26 Core Hits 47 | 15 22 10 Critical Kills . | . . . Critical Parts Destroyed . | . . . Critical Strikes 8 | 5 3 . Burn 8 | 5 3 . Melee Attacks . | . . . Impact . | . . . Slashing . | . . . Piercing . | . . . Sneak Attacks . | . . . Combat Hostiles . | . . . Follow-up Attacks . | . . . Damage Inflicted 1453 | 445 592 416 Guns 1453 | 445 592 416 Cannons . | . . . Explosions . | . . . Melee . | . . . Ramming . | . . . Kinetic 503 | . 205 298 Thermal 950 | 445 387 118 Explosive . | . . . Electromagnetic . | . . . Impact . | . . . Slashing . | . . . Piercing . | . . . Highest Corruption . | . . . Average Corruption . | . . . Corruption Purged . | . . . Corruption Blocked . | . . . Overload Shots . | . . . Overflow Damage . | . . . Projectiles . | . . . Explosions . | . . . Melee . | . . . Knockbacks . | . . . Impact . | . . . Kinetic . | . . . Secondary . | . . . Self-Inflicted Damage . | . . . Shots . | . . . Rammed . | . . . Targets Rammed . | . . . Kicked . | . . . Crushed . | . . . Highest Temperature 405 | 210 405 17 Average Temperature 84 | 49 127 8 Received Heat Transfer 264 | . 246 18 Effects 5 | 3 2 . Shutdowns 1 | . 1 . Energy Bleed 1 | . 1 . Interference 3 | 3 . . Siege Activations . | . . . Martial Activations . | . . . Shielding Activations . | . . . Robots Disrupted . | . . . Combat Hostiles . | . . . Robots Corrupted . | . . . Combat Hostiles . | . . . Parts Fried . | . . . Impact Corruptions . | . . . Robots Melted . | . . . Combat Hostiles . | . . . Parts Melted 1 | . 1 . Heat Transferred 3139 | 1607 1236 296 Parts Sabotaged . | . . . Parts Stolen . | . . . Parts Stripped . | . . . Power Chain Reactions . | . . . Alert | -11 -10 -10 ------- Run | Yrd Mat Sub Maximum Alert Level . | . . . Low Security (%) 100 | 100 100 . Level 1 . | . . . Level 2 . | . . . Level 3 . | . . . Level 4 . | . . . Level 5 . | . . . High Security . | . . . Max Security . | . . . Peak Influence 132 | 15 132 . Initial 3 | . 3 . Average 46 | 2 64 . Influence Increases 506 | 70 346 90 Destroy 0b10 Robot/C 320 | . 240 80 Destroy 0b10 Robot/NC 80 | 70 10 . Destroy Leader 62 | . 52 10 Successful Hack 14 | . 14 . Lose Combat Pursuer 30 | . 30 . Influence Decreases 506 | 65 321 120 Entered New Map 17 | . 2 15 Time Decay 449 | 65 279 105 Lost Part 40 | . 40 . Squads Dispatched 3 | . 3 . Investigation 1 | . 1 . Extermination . | . . . Reinforcement 2 | . 2 . Assault . | . . . Garrison . | . . . Intercept . | . . . Searches Triggered . | . . . Construction Impeded . | . . . Haulers Reinforced . | . . . Active Scanning Responses . | . . . Cargo Convoy Interrupts . | . . . Stealth | -11 -10 -10 --------- Run | Yrd Mat Sub Distress Signals 1 | . 1 . Communications Jammed . | . . . Distress Signals . | . . . Times Spotted 26 | . 19 7 Peak Tracking Total 7 | . 7 3 Tactical Retreats 2 | . 2 . ECM-based Alert Blocks 2 | . 2 . Traps | -11 -10 -10 ------- Run | Yrd Mat Sub Traps Triggered . | . . . Indirectly . | . . . Trap Hack Attempts . | . . . Triggered . | . . . Disarmed . | . . . Reprogrammed 4 | . 4 . Reused . | . . . Traps Extracted . | . . . Installed . | . . . Triggered . | . . . Machines | -11 -10 -10 ---------- Run | Yrd Mat Sub Machines Disabled . | . . . Max in Single Turn . | . . . Machines Repaired . | . . . Machines Dismantled . | . . . Machines Sabotaged . | . . . Overloaded Fab Kills . | . . . Hacking | -11 -10 -10 --------- Run | Yrd Mat Sub Machines Accessed 4 | . 4 . Terminals 3 | . 3 . Fabricators . | . . . Repair Stations . | . . . Recycling Units 1 | . 1 . Scanalyzers . | . . . Garrison Access . | . . . Total Hacks 8 | . 8 . Successful 4 | . 4 . Failed 4 | . 4 . Catastrophic 1 | . 1 . Database Lockouts . | . . . Manual . | . . . Terminals 7 | . 7 . Fabricators . | . . . Repair Stations . | . . . Recycling Units 1 | . 1 . Scanalyzers . | . . . Garrison Access . | . . . Terminal Hacks 3 | . 3 . Reprogram Traps 2 | . 2 . Recall Investigation 1 | . 1 . Fabricator Hacks . | . . . Repair Station Hacks . | . . . Recycling Unit Hacks 1 | . 1 . Retrieve Components 1 | . 1 . Scanalyzer . | . . . Garrison Access Hacks . | . . . Unauthorized Hacks . | . . . Terminals . | . . . Fabricators . | . . . Repair Stations . | . . . Recycling Units . | . . . Scanalyzers . | . . . Garrison Access . | . . . Data Cores Recovered . | . . . Used . | . . . Hacking Detections 2 | . 2 . Full Trace Events 1 | . 1 . Feedback Events . | . . . Feedback Blocked . | . . . Robot Schematics Acquired . | . . . Robots Built . | . . . Authchips . | . . . Time . | . . . Total Robot Build Rating . | . . . Part Schematics Acquired . | . . . Parts Built . | . . . Authchips . | . . . Time . | . . . Total Part Build Rating . | . . . Part Studies Acquired . | . . . Parts Repaired . | . . . Time . | . . . Parts Recycled . | . . . Recycled Matter . | . . . Retrieved Matter . | . . . Retrieved Components 2 | . 2 . Parts Scanalyzed . | . . . Part Schematics Acquired . | . . . Parts Damaged . | . . . Bothacking | -11 -10 -10 ------------ Run | Yrd Mat Sub Used RIF Installer . | . . . Robots Hacked . | . . . Non-combat . | . . . Combat . | . . . Robot Hacks Applied . | . . . Relay Couplers Released . | . . . Fabnet Peak Effective % . | . . . Robots Rewired . | . . . Allies Hacked . | . . . Hacks Repelled . | . . . Allies | -11 -10 -10 -------- Run | Yrd Mat Sub Total Allies . | . . . Largest Group . | . . . Highest-Rated Group . | . . . Highest-Rated Ally . | . . . Total Orders . | . . . Ally Attacks . | . . . Total Damage . | . . . Kills . | . . . Allies Corrupted . | . . . Allies Melted . | . . . Intel | -11 -10 -10 ------- Run | Yrd Mat Sub Active Infowar (turns) 673 | 251 422 . Terrain 541 | 251 290 . ECM 132 | . 132 . Robot Analysis Total . | . . . Derelict Logs Recovered . | . . . Drone Launches . | . . . Drone Recoveries . | . . . Exploration | -11 -10 -10 ------------- Run | Yrd Mat Sub Turns Passed 1559 | 320 804 435 Spaces Moved 1181 | 196 642 343 Core 6 | 6 . . Treads . | . . . Legs . | . . . Wheels 1175 | 190 642 343 Hover . | . . . Flight . | . . . Fastest Speed 50 | 50 80 80 Average Speed 86 | 79 88 85 Slowest Speed 95 | 80 95 95 Overloaded Moves . | . . . Propulsion Burnouts . | . . . Robots Hopped . | . . . Potential Cave-ins . | . . . Cave-ins Triggered . | . . . Exploration Rate (%) 32 | 6 69 23 Regions Visited 2 Branch Regions 1 Pre-discovered Areas 1 | . . 1 Known Exits Taken 1 | . 1 . Unknown Exits Taken 1 | 1 . . Scrap Searched . | . . . Spaces Dug . | . . . Terrain Destroyed . | . . . Melee . | . . . Projectile . | . . . AOE . | . . . Terrain Rammed . | . . . Walls Destroyed . | . . . Machines Disabled . | . . . Actions | -11 -10 -10 --------- Run | Yrd Mat Sub Total 1555 | 293 801 461 Wait 238 | 38 105 95 Move 1179 | 195 641 343 Hop . | . . . Pick Up 18 | 13 3 2 Fast Attach 4 | . 3 1 Attach 10 | 7 2 1 Detach . | . . . Swap 3 | . 3 . Drop 4 | . 3 1 Fire 99 | 40 41 18 Melee . | . . . Ram . | . . . Kick . | . . . Crush . | . . . Escape Stasis . | . . . Rewire . | . . . Trap . | . . . Miscellaneous . | . . . Route ------- -11/Scrapyard -10/Materials (discovered 4 exits: *Mat x2 / *Min / *Sub) -10/Subcaves (discovered 1 exit: *Mat) History --------- Turn | Location | Event 31 | -11/Scrapyard | Discovered new exit (range 15) 321 | -11/Scrapyard | Entered Materials 322 | -10/Materials | Build established: Mutant 608 | -10/Materials | Core integrity fell below 50% 642 | -10/Materials | Lost 3 parts (1n1u1w) 768 | -10/Materials | Discovered new exit (range 16) 904 | -10/Materials | Discovered new exit (range 8) 953 | -10/Materials | Identified exit to Mines 985 | -10/Materials | Discovered new exit (range 5) 989 | -10/Materials | Identified exit to Subcaves 1032 | -10/Materials | Discovered new exit (range 15) 1074 | -10/Materials | Identified exit to Materials 1125 | -10/Materials | Entered Subcaves 1173 | -10/Subcaves | Discovered new exit (range 15) 1200 | -10/Subcaves | Identified exit to Materials 1323 | -10/Subcaves | Shifting Twisted Machinery released Lgt. Humpback 1349 | -10/Subcaves | Core integrity fell below 20% 1454 | -10/Subcaves | Shifting Twisted Machinery released Sub. Monowheel 1455 | -10/Subcaves | Learned location of Zion (-7) 1455 | -10/Subcaves | Met a Zionite searching for "candidates" 1490 | -10/Subcaves | Shifting Twisted Machinery released Battle Cannon 1560 | -10/Subcaves | Destroyed by T2-52Z(R) with Subdweller Machine Gun Last Messages --------------- Lgt. Humpback falls loose from the Twisted Machinery. 01327_ UW-XGT(R): "OHNO!" 01355_ UW-XGT(R) destroyed. 01358_ Acquired 16 matter. 01409_ EF-OQ5(z): "She is not going to be happy we haven't found any suitable candidates yet." Sub. Monowheel falls loose from the Twisted Machinery. 01455_ EF-OQ5(z): "Hey you! It's really dangerous down here, I feel that you could die at any moment. For your health and safety might I suggest a trip to Zion?" World map updated: -7/Zion. Battle Cannon falls loose from the Twisted Machinery. 01525_ EF-OQ5(z) destroyed. 01532_ Wheel destroyed. 01535_ E7-JAD(R) destroyed. 01536_ Particle Gun destroyed. Map ----- +----------------------------------------------------+ | "" ##???## """ ### #?????????????? | | "#?# ??### " #??????????????? | | ## "???## ##??????????????? | | " ?????## ### ##???????????????? | | ??????# #?#### ##????????????????? | | ??????## "#????####?????????????????? | | ???????## "##????????????????????????? | | #% ##?????## "##???????????????????????? | | # #????### " #???????????????????????? | | #???##""" ""#???????????????????????? | | ##???#""""" ####???????????????????????? | | #??### """ #??????????????????????????? | | #### " ##?????????????????????????? | | ## ##????????????????????????? | | % #####????????????????????? | | % # ##???????????????????? | | % ###### ## ###?????????????????? | | ##????# ##### #?????????????????? | | ##???# #??### ##?????????????????? | | #### % ##????#########??????????????? | | #?????????# ##?????????????? | | #####???????## #?????????????? | | ###### ###?????# #?????????????? | | ### ## ##?#### #?????????????? | | ### ### #?????????????? | | # # ## R@ ##?????????????? | | ### % ####??????????????? | | ### ##?????????????????? | | ##?# ######?????????????? | | ## ##?## ## #?????????????? | | ?#### ##??# #?????????????? | | ????####???### ]! ## #?????????????? | | ?????????###??# *%! #####?????????????? | | ????????## ### & ###?????????????????? | | ????????# #???????????????????? | | ?# ="""""""#???????????????????? | | # """"##"#???????????????????? | | # ######## #"""??????????????????? | | ??#????????# ""]"??????????????????? | | ?????????????# " ""?????????????????? | | ??????????????# # "# "??????????????????? | | ??????????????#######? "??????????????????? | | ??????????????????????"???????????????????? | | ??????????????????????????????????????????? | | ??????????????????????????????????????????? | | ??????????????????????????????????????????? | | ??????????????????????????????????????????? | | ??????????????????????????????????????????? | | ??????????????????????????????????????????? | | ??????????????????????????????????????????? | +----------------------------------------------------+ Best States ------------- Heat Dissipation 25 Energy Generation 10 Energy Capacity 250 Matter Stores 300 Matter Capacity 300 Sight Range 16 Terrain Scan Range 16 Terrain Scan Density 10 ECM Strength 1 Evasion (%) 44 Recoil Reduction 1 Item Schematics ----------------- None Robot Schematics ------------------ None Fabricated ------------ Nothing Repaired ---------- Nothing Studied --------- None Alien Tech Used ----------------- None Achievements -------------- None Challenges ------------ None Game ------ Seed BoreSegregatorExpander Manual? 0 Play Time 00:13:10 Cumulative 26.8 hours Start 2026.09.01 @ 12:36:45 End 2026.09.01 @ 12:50:49 Sessions 1 Manual Loads 0 Difficulty Rogue Special Mode None Game No. 63 Rogue 46 Adventurer 15 Explorer 2 Win Type - Total 0 Types 0/0/0/0/0/0/0/0/0/0 Lore% 24 Gallery% 22 Achievement% 20 Wizard Run 0 Options --------- Layout 1 ASCII 0 Keyboard 0 Movement Mouse Keybinds 0 Fullscreen 1 Font 24/Smallcaps Map View 50x35 Zoom Use 0% Tactical HUD 1 Map Filters NONE Filters NONE Steam 1 RUN: f9c355c4-689b-43fd-9ee8-2263666cb4d8